[Event "Chessity Nationale Pupillendag 2018 - Groep F"]
[Site "Meppel, Netherlands"]
[Date "2018.06.23"]
[Round "7.2"]
[White "Van Batenburg, Mees"]
[Black "Paulzen, Yuko"]
[Result "0-1"]
[TimeControl "15 min + 10 sec"]
[WhiteClock "00:02:58"]
[BlackClock "00:07:19"]
[WhiteElo "962"]
[BlackElo "931"]

1. e4 {[%clk 00:15:19]} e5 {[%clk 00:15:15]} {[%emt 00:00:05]} 2. Nf3 {[%clk
00:15:28]} {[%emt 00:00:01]} Nc6 {[%clk 00:15:21]} {[%emt 00:00:05]} 3. Bc4
{[%clk 00:15:36]} {[%emt 00:00:02]} Bc5 {[%clk 00:15:13]} {[%emt 00:00:18]} 4.
c3 {[%clk 00:15:43]} {[%emt 00:00:03]} Nf6 {[%clk 00:15:06]} {[%emt 00:00:17]}
5. d4 {[%clk 00:15:51]} Be7 {[%clk 00:15:08]} {[%emt 00:00:08]} 6. dxe5 {[%clk
00:15:59]} {[%emt 00:00:03]} Nxe4 {[%clk 00:14:58]} {[%emt 00:00:20]} 7. Nbd2
{[%clk 00:15:40]} {[%emt 00:00:29]} Nxd2 {[%clk 00:14:44]} {[%emt 00:00:24]} 8.
Bxd2 {[%emt 00:00:13]} O-O {[%clk 00:14:33]} {[%emt 00:00:16]} 9. O-O {[%clk
00:15:35]} {[%emt 00:00:15]} d5 {[%clk 00:14:33]} {[%emt 00:00:12]} 10. exd6
{[%emt 00:00:06]} Bxd6 {[%emt 00:00:07]} 11. Qb3 {[%clk 00:15:22]} {[%emt
00:00:10]} Rb8 {[%clk 00:14:19]} {[%emt 00:00:26]} 12. Ng5 {[%clk 00:15:24]}
{[%emt 00:00:08]} Qf6 {[%clk 00:13:38]} {[%emt 00:00:51]} 13. Bd5 {[%clk
00:14:51]} {[%emt 00:00:41]} Bd7 {[%clk 00:13:17]} {[%emt 00:00:33]} 14. Nf3
{[%clk 00:14:18]} {[%emt 00:00:39]} Bg4 {[%clk 00:13:07]} {[%emt 00:00:24]} 15.
Rae1 {[%clk 00:13:30]} {[%emt 00:00:56]} Ne5 {[%clk 00:11:28]} {[%emt
00:01:51]} 16. Nxe5 {[%clk 00:12:15]} {[%emt 00:01:24]} Bxe5 {[%clk 00:11:24]}
{[%emt 00:00:14]} 17. Re4 {[%emt 00:00:40]} Bf5 {[%clk 00:11:01]} {[%emt
00:00:30]} 18. Rc4 {[%clk 00:10:59]} {[%emt 00:00:44]} Bd3 {[%clk 00:11:00]}
{[%emt 00:00:26]} 19. Re1 {[%clk 00:09:57]} {[%emt 00:01:12]} Bxc4 {[%clk
00:11:02]} {[%emt 00:00:09]} 20. Qxc4 {[%clk 00:10:03]} {[%emt 00:00:03]} Bd6
{[%clk 00:10:56]} {[%emt 00:00:16]} 21. Be3 {[%clk 00:09:40]} {[%emt 00:00:33]}
Qe5 {[%clk 00:10:27]} {[%emt 00:00:40]} 22. f4 {[%clk 00:08:53]} {[%emt
00:00:57]} Qf5 {[%clk 00:09:39]} {[%emt 00:00:57]} 23. Be4 {[%clk 00:07:51]}
{[%emt 00:01:13]} Qe6 {[%clk 00:09:35]} {[%emt 00:00:14]} 24. Bd5 {[%clk
00:07:47]} {[%emt 00:00:14]} Qd7 {[%clk 00:09:37]} {[%emt 00:00:08]} 25. Bxa7
{[%clk 00:07:11]} {[%emt 00:00:21]} Ra8 {[%clk 00:09:37]} {[%emt 00:00:36]} 26.
Be3 {[%clk 00:07:09]} {[%emt 00:00:05]} c6 {[%clk 00:09:44]} {[%emt 00:00:10]}
27. Bf3 {[%clk 00:06:57]} {[%emt 00:00:12]} b5 {[%clk 00:09:24]} {[%emt
00:00:39]} 28. Qb3 {[%clk 00:06:13]} {[%emt 00:00:53]} Rfe8 {[%clk 00:09:12]}
{[%emt 00:00:20]} 29. c4 {[%clk 00:06:06]} {[%emt 00:00:20]} Bc5 {[%clk
00:09:05]} {[%emt 00:00:17]} 30. cxb5 {[%clk 00:05:57]} {[%emt 00:00:19]} Bxe3+
{[%clk 00:09:08]} {[%emt 00:00:07]} 31. Rxe3 {[%clk 00:05:52]} {[%emt
00:00:12]} Rxe3 {[%clk 00:08:28]} {[%emt 00:00:53]} 32. Qxe3 {[%clk 00:05:59]}
{[%emt 00:00:03]} g6 {[%clk 00:08:07]} {[%emt 00:00:31]} 33. Qe2 {[%clk
00:05:48]} {[%emt 00:00:14]} Rxa2 {[%clk 00:07:50]} {[%emt 00:00:33]} 34. bxc6
{[%clk 00:05:51]} {[%emt 00:00:07]} Qd4+ {[%clk 00:07:21]} {[%emt 00:00:40]} 35.
Kf1 {[%clk 00:03:52]} {[%emt 00:02:09]} Ra1+ {[%clk 00:07:20]} {[%emt
00:00:12]} 36. Qe1 {[%clk 00:03:59]} {[%emt 00:00:02]} Rxe1+ {[%clk 00:07:27]}
{[%emt 00:00:04]} 37. Kxe1 {[%clk 00:04:04]} {[%emt 00:00:05]} Qc5 {[%clk
00:07:18]} {[%emt 00:00:15]} 38. g4 {[%clk 00:03:48]} {[%emt 00:00:19]} Qb4+
{[%clk 00:07:16]} {[%emt 00:00:21]} 39. Kf1 {[%clk 00:03:47]} {[%emt 00:00:12]}
Qxf4 {[%clk 00:07:18]} {[%emt 00:00:08]} 40. Kg2 {[%clk 00:03:52]} {[%emt
00:00:06]} Kf8 {[%clk 00:07:10]} {[%emt 00:00:19]} 41. h4 {[%clk 00:03:50]}
{[%emt 00:00:10]} Qd2+ {[%clk 00:06:57]} {[%emt 00:00:24]} 42. Kg3 {[%clk
00:03:55]} {[%emt 00:00:06]} Qxb2 {[%clk 00:07:03]} {[%emt 00:00:04]} 43. Kf4
{[%clk 00:03:45]} {[%emt 00:00:19]} Qb8+ {[%clk 00:07:03]} {[%emt 00:00:10]} 44.
Ke4 {[%clk 00:03:29]} {[%emt 00:00:15]} Qd6 {[%clk 00:07:01]} {[%emt 00:00:21]}
45. Ke3 {[%clk 00:03:28]} {[%emt 00:00:10]} Ke7 {[%clk 00:06:50]} {[%emt
00:00:22]} 46. Ke2 {[%clk 00:03:23]} {[%emt 00:00:08]} Qf4 {[%clk 00:06:48]}
{[%emt 00:00:20]} 47. Kf2 {[%clk 00:03:09]} {[%emt 00:00:18]} f5 {[%clk
00:06:21]} {[%emt 00:00:44]} 48. gxf5 {[%clk 00:02:55]} {[%emt 00:00:24]} Qxh4+
{[%clk 00:06:05]} {[%emt 00:00:27]} 49. Ke3 {[%clk 00:02:47]} {[%emt 00:00:17]}
gxf5 {[%clk 00:06:05]} {[%emt 00:00:11]} 50. Ke2 {[%clk 00:02:37]} {[%emt
00:00:15]} Qc4+ {[%clk 00:06:08]} {[%emt 00:00:12]} 51. Kf2 {[%clk 00:02:37]}
{[%emt 00:00:09]} h5 {[%clk 00:06:12]} {[%emt 00:00:06]} 52. Kg3 {[%clk
00:02:32]} {[%emt 00:00:09]} h4+ {[%clk 00:06:17]} {[%emt 00:00:10]} 53. Kg2
{[%clk 00:02:34]} {[%emt 00:00:04]} Ke6 {[%clk 00:06:17]} {[%emt 00:00:15]} 54.
Kh3 {[%clk 00:02:28]} {[%emt 00:00:11]} Ke5 {[%clk 00:06:23]} {[%emt 00:00:09]}
55. Kg2 {[%clk 00:02:35]} {[%emt 00:00:02]} Kf4 {[%clk 00:06:24]} {[%emt
00:00:09]} 56. c7 {[%clk 00:02:16]} {[%emt 00:00:30]} Qxc7 {[%emt 00:00:16]} 57.
Be2 {[%clk 00:02:06]} {[%emt 00:00:05]} Qc2 {[%clk 00:06:23]} {[%emt 00:00:20]}
58. Kf1 {[%clk 00:02:11]} {[%emt 00:00:03]} h3 {[%clk 00:06:27]} {[%emt
00:00:08]} 59. Ba6 {[%clk 00:02:09]} {[%emt 00:00:10]} h2 {[%clk 00:06:27]}
{[%emt 00:00:11]} 60. Bb7 {[%clk 00:02:18]} {[%emt 00:00:03]} Qb1+ {[%clk
00:06:35]} {[%emt 00:00:02]} 61. Ke2 {[%clk 00:02:24]} {[%emt 00:00:04]} Qxb7
{[%clk 00:06:42]} {[%emt 00:00:03]} 62. Kd3 {[%clk 00:02:32]} {[%emt 00:00:02]}
h1=Q {[%clk 00:06:48]} {[%emt 00:00:04]} 63. Kc3 {[%clk 00:02:38]} {[%emt
00:00:05]} Qd7 {[%clk 00:06:55]} {[%emt 00:00:03]} 64. Kc2 {[%clk 00:02:45]}
{[%emt 00:00:02]} Qhc6+ {[%clk 00:07:02]} {[%emt 00:00:03]} 65. Kb3 {[%clk
00:02:53]} {[%emt 00:00:02]} Qdb7+ {[%clk 00:07:11]} {[%emt 00:00:02]} 66. Ka3
{[%clk 00:02:59]} {[%emt 00:00:03]} Qca6# {[%clk 00:07:19]} {[%emt 00:00:02]}
0-1